fUSD/lending_fUSD_20260504
["ID","MTS","AMOUNT","RATE_DAILY","PERIOD"]
[421543661,1777844732000,-739.14222478,0.00013,2]
[421543659,1777844732000,-739.14222478,0.00013,2]
[421543658,1777844732000,-739.14222478,0.00013,2]
[421543657,1777844732000,-739.14222478,0.00013,2]
[421543663,1777844733000,-150.0,0.00012999,2]
[421543662,1777844733000,-300.0,0.00012999,2]
[421543665,1777844733000,-10.85777522,0.00012999,2]
[421543666,1777844733000,-728.28444956,0.00013,2]
[421543664,1777844733000,-289.14222478,0.00012999,2]
[421543668,1777844793000,-47.21375608,0.00013,2]
[421543667,1777844793000,-300.0,0.00012999,2]
[421543669,1777844829000,-10000.01,0.00013,2]
[421543675,1777845016000,-10000.01,0.00013,2]
[421543676,1777845016000,-10000.01,0.00013,2]
[421543677,1777845016000,-10000.01,0.00013,2]
[421543678,1777845016000,-10000.01,0.00013,2]
[421543684,1777845017000,-640.57063998,0.00013036,2]
[421543682,1777845017000,-9175.16088802,0.00013,2]
[421543683,1777845017000,-184.278472,0.00013,2]
[421543681,1777845017000,-10000.01,0.00013,2]
[421543680,1777845017000,-10000.01,0.00013,2]
[421543679,1777845017000,-10000.01,0.00013,2]
[421543701,1777845018000,-151.0,0.0001379,2]
[421543699,1777845018000,-750.55,0.00013562,2]
[421543703,1777845018000,-500.0,0.0001379,2]
[421543704,1777845018000,-151.0,0.0001379,2]
[421543702,1777845018000,-151.0,0.0001379,2]
[421543707,1777845018000,-151.0,0.0001379,2]
[421543706,1777845018000,-151.0,0.0001379,2]
[421543705,1777845018000,-438.70818035,0.0001379,2]
[421543709,1777845018000,-138.31548196,0.0001379,2]
[421543708,1777845018000,-151.0,0.0001379,2]
[421543711,1777845018000,-500.0,0.0001379,2]
[421543700,1777845018000,-166.66,0.00013699,2]
[421543697,1777845018000,-769.02938574,0.00013421,2]
[421543696,1777845018000,-150.0,0.00013364,2]
[421543698,1777845018000,-984.53,0.00013424,2]
[421543720,1777845018000,-151.0,0.0001379,2]
[421543694,1777845018000,-150.0,0.00013364,2]
[421543691,1777845018000,-641.63,0.00013229,2]
[421543693,1777845018000,-1952.93,0.00013336,2]
[421543692,1777845018000,-171.81,0.00013277,2]
[421543690,1777845018000,-2129.84695195,0.00013211,2]
[421543688,1777845018000,-2510.69759193,0.00013124,2]
[421543686,1777845018000,-2000.0,0.00013055,2]
[421543689,1777845018000,-3641.83304805,0.00013211,2]
[421543687,1777845018000,-200.0,0.00013088,2]
[421543685,1777845018000,-1647.47936002,0.00013036,2]
[421543695,1777845018000,-150.0,0.00013364,2]
[421543721,1777845018000,-151.0,0.0001379,2]
[421543729,1777845018000,-151.0,0.0001379,2]
[421543714,1777845018000,-500.0,0.0001379,2]
[421543710,1777845018000,-12.68451804,0.0001379,2]
[421543741,1777845018000,-2500.0,0.00014299,2]
[421543740,1777845018000,-952.45710122,0.00014299,2]
[421543738,1777845018000,-1176.62322522,0.00014284,2]
[421543739,1777845018000,-1643.12840007,0.00014284,2]
[421543737,1777845018000,-762.01849545,0.00014278,2]
[421543732,1777845018000,-226.4967982,0.0001379,2]
[421543728,1777845018000,-151.0,0.0001379,2]
[421543725,1777845018000,-151.0,0.0001379,2]
[421543730,1777845018000,-151.0,0.0001379,2]
[421543726,1777845018000,-151.0,0.0001379,2]
[421543733,1777845018000,-167.68,0.00013848,2]
[421543731,1777845018000,-151.0,0.0001379,2]
[421543727,1777845018000,-151.0,0.0001379,2]
[421543736,1777845018000,-2641.56010857,0.00014278,2]
[421543735,1777845018000,-759.37933211,0.00013853,2]
[421543717,1777845018000,-500.0,0.0001379,2]
[421543716,1777845018000,-500.0,0.0001379,2]
[421543722,1777845018000,-151.0,0.0001379,2]
[421543719,1777845018000,-151.0,0.0001379,2]
[421543712,1777845018000,-500.0,0.0001379,2]
[421543713,1777845018000,-500.0,0.0001379,2]
[421543718,1777845018000,-151.0,0.0001379,2]
[421543723,1777845018000,-151.0,0.0001379,2]
[421543724,1777845018000,-151.0,0.0001379,2]
[421543734,1777845018000,-578.20924308,0.00013853,2]
[421543715,1777845018000,-500.0,0.0001379,2]
[421543753,1777845019000,-250.0,0.000143,2]
[421543752,1777845019000,-366.7412624,0.000143,2]
[421543750,1777845019000,-300.0,0.000143,2]
[421543749,1777845019000,-300.0,0.000143,2]
[421543751,1777845019000,-300.0,0.000143,2]
[421543748,1777845019000,-300.0,0.000143,2]
[421543745,1777845019000,-2500.0,0.00014299,2]
[421543747,1777845019000,-165.4435,0.00014299,2]
[421543744,1777845019000,-2034.21722196,0.00014299,2]
[421543743,1777845019000,-465.78277804,0.00014299,2]
[421543742,1777845019000,-2500.0,0.00014299,2]
[421543746,1777845019000,-2500.0,0.00014299,2]
[421543754,1777845019000,-500.0,0.00014308,2]
[421543761,1777845019000,-500.0,0.00014308,2]
[421543757,1777845019000,-16.39198436,0.00014308,2]
[421543755,1777845019000,-483.60801564,0.00014308,2]
[421543766,1777845019000,-420.0,0.00014256,2]
[421543767,1777845019000,-1680.0,0.00014299,2]
[421543765,1777845019000,-1200.0,0.00012999,2]
[421543764,1777845019000,-300.0,0.00012999,2]
[421543763,1777845019000,-10000.01,0.00014308,2]
[421543768,1777845019000,-6400.01,0.00014308,2]
[421543760,1777845019000,-500.0,0.00014308,2]
[421543759,1777845019000,-500.0,0.00014308,2]
[421543758,1777845019000,-500.0,0.00014308,2]
[421543756,1777845019000,-317.16869965,0.00014245,2]
[421543762,1777845019000,-7666.44931599,0.00014308,2]
[421544203,1777845040000,-1001.80802509,0.00012999,2]
[421544357,1777845064000,-1176.62322516,0.00014558,2]
[421544356,1777845064000,-1176.62322516,0.00014489,2]
[421544359,1777845064000,-2000.0,0.00014687,2]
[421544358,1777845064000,-1176.62322516,0.00014626,2]
[421544353,1777845064000,-2361.68,0.00014409,2]
[421544355,1777845064000,-163.3907236,0.0001446,2]
[421544354,1777845064000,-1176.62322516,0.00014421,2]
[421544350,1777845064000,-1176.62322516,0.00014352,2]
[421544351,1777845064000,-163.3907236,0.00014372,2]
[421544347,1777845064000,-235901.8663507,0.00014308,2]
[421544348,1777845064000,-781.95418243,0.00014308,2]
[421544346,1777845064000,-163.39072366,0.00014284,2]
[421544349,1777845064000,-263538.15965088,0.00014308,2]
[421544363,1777845064000,-411.26934962,0.00014732,2]
[421544352,1777845064000,-166.66,0.00014384,2]
[421544364,1777845064000,-1176.62322516,0.00014763,2]
[421544375,1777845064000,-783497.30483206,0.000148,2]
[421544366,1777845064000,-2361.68,0.00014769,2]
[421544361,1777845064000,-5000.0,0.000147,2]
[421544378,1777845064000,-124298.42640523,0.000148,2]
[421544374,1777845064000,-200.0,0.00014799,2]
[421544377,1777845064000,-250613.27460668,0.000148,2]
[421544372,1777845064000,-500.0,0.00014799,2]
[421544370,1777845064000,-500.0,0.00014799,2]
[421544373,1777845064000,-242.74039524,0.00014799,2]
[421544376,1777845064000,-214029.74569973,0.000148,2]
[421544369,1777845064000,-500.0,0.00014799,2]
[421544368,1777845064000,-500.0,0.00014799,2]
[421544367,1777845064000,-220.54910008,0.00014797,2]
[421544362,1777845064000,-3811.0,0.000147,2]
[421544360,1777845064000,-1176.62322516,0.00014695,2]
[421544371,1777845064000,-500.0,0.00014799,2]
[421544365,1777845064000,-12304.0,0.00014767,2]
[421544393,1777845065000,-500.0,0.00014899,2]
[421544395,1777845065000,-500.0,0.00014899,2]
[421544394,1777845065000,-500.0,0.00014899,2]
[421544391,1777845065000,-500.0,0.00014899,2]
[421544398,1777845065000,-5207.31037681,0.000149,2]
[421544397,1777845065000,-1176.62322516,0.000149,2]
[421544399,1777845065000,-3624.56724227,0.000149,2]
[421544403,1777845065000,-154.0,0.000149,2]
[421544392,1777845065000,-500.0,0.00014899,2]
[421544396,1777845065000,-213.36210432,0.000149,2]
[421544390,1777845065000,-500.0,0.00014899,2]
[421544385,1777845065000,-705.49471,0.0001488,2]
[421544387,1777845065000,-1000.0,0.00014899,2]
[421544386,1777845065000,-151.0,0.00014897,2]
[421544388,1777845065000,-500.0,0.00014899,2]
[421544405,1777845065000,-32.50979706,0.000149,2]
[421544382,1777845065000,-1176.62322516,0.00014832,2]
[421544380,1777845065000,-163.3907236,0.00014548,2]
[421544384,1777845065000,-222.0,0.00014867,5]
[421544383,1777845065000,-492.19081041,0.0001485,2]
[421544381,1777845065000,-14696.4092563,0.000148,2]
[421544379,1777845065000,-150.0,0.00013798,2]
[421544389,1777845065000,-421.99560437,0.00014899,2]
[421544402,1777845065000,-154.0,0.000149,2]
[421544415,1777845065000,-154.0,0.00014914,2]
[421544400,1777845065000,-1044.44440056,0.000149,2]
[421544425,1777845065000,-427.16260125,0.00015,2]
[421544427,1777845065000,-684306.05602852,0.00015,2]
[421544423,1777845065000,-1289230.67510955,0.00015,2]
[421544426,1777845065000,-710.54,0.00015,2]
[421544424,1777845065000,-2073.16295195,0.00015,2]
[421544419,1777845065000,-179.44486967,0.0001497,2]
[421544418,1777845065000,-526.04984033,0.0001497,2]
[421544417,1777845065000,-154.0,0.00014967,2]
[421544416,1777845065000,-705.49471,0.0001492,2]
[421544422,1777845065000,-95095.3264007,0.00015,2]
[421544420,1777845065000,-224.01888329,0.00014997,2]
[421544414,1777845065000,-154.0,0.00014914,2]
[421544421,1777845065000,-8904.97002332,0.00015,2]
[421544404,1777845065000,-121.49020294,0.000149,2]
[421544407,1777845065000,-489.82499435,0.0001491,2]
[421544409,1777845065000,-154.0,0.00014911,2]
[421544408,1777845065000,-69.26447517,0.0001491,2]
[421544406,1777845065000,-154.0,0.000149,2]
[421544410,1777845065000,-193.96547005,0.00014911,2]
[421544411,1777845065000,-67.78100038,0.00014911,2]
[421544413,1777845065000,-151.0,0.00014914,2]
[421544412,1777845065000,-154.0,0.00014911,2]
[421544401,1777845065000,-1359.78502182,0.000149,2]
[421544432,1777845066000,-163.39072366,0.00014212,2]
[421544431,1777845066000,-1826.94097169,0.00015,2]
[421544430,1777845066000,-117184.48395972,0.00015,2]
[421544428,1777845066000,-38.57930623,0.00014636,2]
[421544429,1777845066000,-124.81141737,0.00014636,2]
[421544436,1777845138000,211.58,7.05e-05,2]
[421544437,1777845327000,2785.49,0.00013562,2]
[421544440,1777845469000,3408.99,0.00013336,2]
[421544448,1777845694000,163.69,0.00013319,2]
[421544450,1777845708000,1387.59,0.00013319,2]
[421544451,1777845768000,1144.02,0.00013276,2]
[421544452,1777845769000,253.23610509,0.00013599,2]
[421544454,1777845811000,1976.555926,0.00013561,2]
[421544457,1777845903000,150.0,0.00013463,2]
[421544458,1777845908000,150.0,0.00013389,2]
[421544459,1777845915000,150.0,0.00013389,2]
[421544460,1777845917000,150.0,0.00013389,2]
[421544463,1777845925000,150.0,0.00013538,2]
[421544462,1777845925000,150.0,0.00013389,2]
[421544461,1777845925000,150.0,0.00013389,2]
[421544466,1777845931000,442.315926,0.00013291,2]
[421544464,1777845931000,6973.454074,0.00013291,2]
[421544465,1777845931000,10000.01,0.00013291,2]
[421544470,1777845990000,495.28,0.00030137,120]
[421544471,1777846039000,1364.08,0.00013322,2]
[421544472,1777846072000,150.0,0.00013301,2]
[421544473,1777846091000,168.82407006,0.00013605,2]
[421544481,1777846166000,2395.91,0.00013332,2]
[421544501,1777846231000,-693.05,0.00013746,2]
[421544497,1777846231000,-200.0,0.00013699,2]
[421544505,1777846231000,-168.82407004,0.00013798,2]
[421544500,1777846231000,-1200.0,0.00013745,2]
[421544498,1777846231000,-300.0,0.00013705,2]
[421544495,1777846231000,-150.0,0.00013687,2]
[421544502,1777846231000,-379.3,0.00013746,2]
[421544499,1777846231000,-166.67,0.0001372,2]
[421544494,1777846231000,-1484.29625025,0.00013665,2]
[421544493,1777846231000,-911.61374975,0.00013665,2]
[421544503,1777846231000,-150.0,0.00013761,2]
[421544504,1777846231000,-150.0,0.00013761,2]
[421544492,1777846231000,-270.0,0.0001363,2]
[421544491,1777846231000,-184.278472,0.0001363,2]
[421544496,1777846231000,-165.03,0.00013699,2]
[421544510,1777846231000,-168.82407004,0.0001399,2]
[421544508,1777846231000,-150.0,0.00013885,2]
[421544516,1777846231000,-1153.71019033,0.00013991,2]
[421544518,1777846231000,-1200.0,0.00013998,2]
[421544521,1777846231000,-153.74589705,0.00014001,2]
[421544522,1777846231000,-578.20924308,0.00014001,2]
[421544519,1777846231000,-129.76107802,0.00013998,2]
[421544524,1777846231000,-1800.0,0.00014001,2]
[421544520,1777846231000,-250.0,0.00014,2]
[421544513,1777846231000,-5486.6978,0.00013991,2]
[421544523,1777846231000,-673.08865604,0.00014001,2]
[421544512,1777846231000,-1086.018,0.00013991,2]
[421544515,1777846231000,-3846.28980967,0.00013991,2]
[421544514,1777846231000,-2500.0,0.00013991,2]
[421544507,1777846231000,-300.0,0.00013884,2]
[421544506,1777846231000,-150.0,0.00013835,2]
[421544517,1777846231000,-1066.14892198,0.00013998,2]
[421544511,1777846231000,-150.0,0.0001399,2]
[421544509,1777846231000,-150.0,0.00013984,2]
[421544537,1777846232000,-151.0,0.00014082,2]
[421544543,1777846232000,-151.0,0.00014082,2]
[421544549,1777846232000,-151.0,0.00014082,2]
[421544545,1777846232000,-151.0,0.00014082,2]
[421544547,1777846232000,-151.0,0.00014082,2]
[421544551,1777846232000,-151.0,0.00014082,2]
[421544548,1777846232000,-151.0,0.00014082,2]
[421544546,1777846232000,-500.0,0.00014082,2]
[421544554,1777846232000,-151.0,0.00014082,2]
[421544557,1777846232000,-224.01888329,0.00014088,2]
[421544533,1777846232000,-1377.42282659,0.00014082,2]
[421544544,1777846232000,-500.0,0.00014082,2]
[421544550,1777846232000,-151.0,0.00014082,2]
[421544538,1777846232000,-500.0,0.00014082,2]
[421544541,1777846232000,-151.0,0.00014082,2]
[421544530,1777846232000,-200.0,0.00014082,2]
[421544540,1777846232000,-500.0,0.00014082,2]
[421544531,1777846232000,-151.0,0.00014082,2]
[421544539,1777846232000,-151.0,0.00014082,2]
[421544532,1777846232000,-500.0,0.00014082,2]
[421544534,1777846232000,-151.0,0.00014082,2]
[421544536,1777846232000,-500.0,0.00014082,2]
[421544528,1777846232000,-151.0,0.00014001,2]
[421544525,1777846232000,-452.04785907,0.00014001,2]
[421544529,1777846232000,-151.0,0.00014056,2]
[421544527,1777846232000,-4038.62062963,0.00014001,2]
[421544526,1777846232000,-1046.42972454,0.00014001,2]
[421544558,1777846232000,-1000.0,0.0001409,2]
[421544542,1777846232000,-500.0,0.00014082,2]
[421544556,1777846232000,-151.0,0.00014082,2]
[421544535,1777846232000,-500.0,0.00014082,2]
[421544560,1777846232000,-1000.0,0.0001409,2]
[421544552,1777846232000,-151.0,0.00014082,2]
[421544611,1777846232000,-500.0,0.0001409,2]
[421544613,1777846232000,-150.0,0.0001409,2]
[421544612,1777846232000,-321.45865313,0.0001409,2]
[421544610,1777846232000,-122.79007728,0.0001409,2]
[421544602,1777846232000,-99.79007728,0.0001409,2]
[421544609,1777846232000,-377.20992272,0.0001409,2]
[421544608,1777846232000,-500.0,0.0001409,2]
[421544606,1777846232000,-99.79007728,0.0001409,2]
[421544597,1777846232000,-2216.09614272,0.0001409,2]
[421544600,1777846232000,-542.78378,0.0001409,2]
[421544604,1777846232000,-400.20992272,0.0001409,2]
[421544595,1777846232000,-500.0,0.0001409,2]
[421544614,1777846232000,-661306.4598274,0.00014091,2]
[421544587,1777846232000,-601.46900027,0.0001409,2]
[421544579,1777846232000,-500.0,0.0001409,2]
[421544591,1777846232000,-500.0,0.0001409,2]
[421544589,1777846232000,-249.84702057,0.0001409,2]
[421544583,1777846232000,-500.0,0.0001409,2]
[421544585,1777846232000,-500.0,0.0001409,2]
[421544581,1777846232000,-500.0,0.0001409,2]
[421544569,1777846232000,-500.0,0.0001409,2]
[421544577,1777846232000,-500.0,0.0001409,2]
[421544593,1777846232000,-565.89345728,0.0001409,2]
[421544564,1777846232000,-585.03601508,0.0001409,2]
[421544562,1777846232000,-1097.19038784,0.0001409,15]
[421544575,1777846232000,-158.4306982,0.0001409,2]
[421544566,1777846232000,-182.48292372,0.0001409,2]
[421544573,1777846232000,-618.68060075,0.0001409,2]
[421544571,1777846232000,-500.0,0.0001409,2]
[421544619,1777846237000,-6021.21035833,0.00014091,2]
[421544622,1777846237000,-1086.53366203,0.00014091,2]
[421544621,1777846237000,-2851.21217869,0.00014091,2]
[421544623,1777846237000,-1514.08643731,0.00014091,2]
[421544620,1777846237000,-265.712551,0.00014091,2]
[421544626,1777846238000,-11730.74947756,0.00014091,2]
[421544625,1777846238000,-10339.24356323,0.00014091,2]
[421544628,1777846238000,-449.3404125,0.00014091,2]
[421544624,1777846238000,-9308.43377628,0.00014091,2]
[421544627,1777846238000,-20197.1028935,0.00014091,2]
[421544629,1777846239000,-500.0,0.00014091,2]
[421544633,1777846240000,-6369.95952329,0.00014091,2]
[421544632,1777846240000,-295.44116587,0.00014091,2]
[421544656,1777846242000,-13529.69766813,0.00014091,2]
[421544658,1777846242000,-4461.36695267,0.00014091,2]
[421544657,1777846242000,-31859.9999965,0.00014091,2]
[421544655,1777846242000,-5000.0,0.00013991,2]
[421544677,1777846243000,-500.0,0.00014308,2]
[421544672,1777846243000,-150.0,0.00014282,2]
[421544669,1777846243000,-151.0,0.00014166,2]
[421544670,1777846243000,-151.0,0.00014221,2]
[421544666,1777846243000,-150.0,0.00014133,2]
[421544667,1777846243000,-150.0,0.00014133,2]
[421544659,1777846243000,-2119.33276107,0.00014091,2]
[421544665,1777846243000,-150.0,0.00014133,2]
[421544662,1777846243000,-27025.87280782,0.00014091,2]
[421544663,1777846243000,-211.58,0.00014101,2]
[421544661,1777846243000,-1607.59263891,0.00014091,2]
[421544668,1777846243000,-2555.3101,0.00014164,2]
[421544664,1777846243000,-151.0,0.00014111,2]
[421544671,1777846243000,-151.0,0.00014276,2]
[421544660,1777846243000,-17533.17424791,0.00014091,2]
[421544673,1777846243000,-500.0,0.00014308,2]
[421544684,1777846243000,-150.0,0.00014505,2]
[421544686,1777846243000,-150.0,0.00014579,2]
[421544688,1777846243000,-2025.82348019,0.000147,2]
[421544683,1777846243000,-150.0,0.0001443,2]
[421544685,1777846243000,-150.0,0.00014505,2]
[421544687,1777846243000,-2395.91,0.00014665,2]
[421544676,1777846243000,-502.09308434,0.00014308,2]
[421544682,1777846243000,-165.03,0.00014396,2]
[421544680,1777846243000,-2395.91,0.00014332,2]
[421544678,1777846243000,-500.0,0.00014308,2]
[421544679,1777846243000,-197.90691566,0.00014308,2]
[421544675,1777846243000,-500.0,0.00014308,2]
[421544674,1777846243000,-500.0,0.00014308,2]
[421544681,1777846243000,-150.0,0.00014381,2]
[421544698,1777846245000,-500.0,0.00014799,2]
[421544702,1777846245000,-352.74735,0.0001485,2]
[421544696,1777846245000,-189.0420858,0.00014778,2]
[421544699,1777846245000,-500.0,0.00014799,2]
[421544695,1777846245000,-150.0,0.00014728,2]
[421544694,1777846245000,-2289.38086849,0.000147,2]
[421544701,1777846245000,-30.06859703,0.00014799,2]
[421544697,1777846245000,-582.63157864,0.0001478,2]
[421544703,1777846245000,-352.74735,0.0001485,2]
[421544700,1777846245000,-469.93140297,0.00014799,2]
[421544706,1777846245000,-150.0,0.00014877,2]
[421544711,1777846245000,-64607.04485882,0.00014878,2]
[421544707,1777846245000,-150.0,0.00014877,2]
[421544710,1777846245000,-29.26238496,0.00014878,2]
[421544708,1777846245000,-150.0,0.00014877,2]
[421544705,1777846245000,-150.0,0.00014877,2]
[421544712,1777846245000,-1050.23951511,0.00014878,2]
[421544709,1777846245000,-150.0,0.00014877,2]
[421544704,1777846245000,-352.74735,0.0001486,2]
[421544713,1777846246000,-427.46515504,0.00014878,2]
[421544714,1777846246000,-4477.056514,0.00014878,2]
[421544748,1777846261000,157.25,7.266e-05,2]
[421544755,1777846816000,703.819,0.00030137,120]
[421544760,1777846908000,272.05,0.00029452,120]
[421544761,1777846913000,182.33,0.00013361,2]
[421544768,1777847113000,150.0,0.00013488,2]
[421544769,1777847117000,150.0,0.00013488,2]
[421544770,1777847123000,150.0,0.00013488,2]
[421544771,1777847264000,1000.0,0.00013094,2]
[421544773,1777847318000,3130.57,0.00012371,2]
[421544774,1777847322000,1110.07,0.00013165,2]
[421544775,1777847354000,5759.37,0.00010682,2]
[421544776,1777847354000,680.65377461,0.00010682,2]
[421544777,1777847410000,9319.35622539,0.00012,2]
[421544778,1777847410000,10000.01,0.00012,2]
[421544781,1777847410000,10000.01,0.00012,2]
[421544780,1777847410000,10000.01,0.00012,2]
[421544779,1777847410000,10000.01,0.00012,2]
[421544783,1777847410000,10000.01,0.00012,2]
[421544784,1777847410000,10000.01,0.00012,2]
[421544787,1777847410000,5708.05949,0.00012,2]
[421544786,1777847410000,10000.01,0.00012,2]
[421544785,1777847410000,10000.01,0.00012,2]
[421544782,1777847410000,10000.01,0.00012,2]
[421544908,1777847616000,-450.0,0.00012,2]
[421544906,1777847616000,-6894.29289863,0.00012,2]
[421544905,1777847616000,-1134.09669,0.00012,2]
[421544907,1777847616000,-664598.13791537,0.00012,2]
[421544912,1777847616000,-1000.0,0.00012,2]
[421544911,1777847616000,-19055.65702718,0.00012,2]
[421544910,1777847616000,-553417.23958031,0.00012,2]
[421544913,1777847616000,-1159.454826,0.00012,2]
[421544914,1777847616000,-1098.43650753,0.00012,2]
[421544915,1777847616000,-3039.0767893,0.00012,2]
[421544917,1777847616000,-9308.43377628,0.00012,2]
[421544916,1777847616000,-1793.02088067,0.00012,2]
[421544909,1777847616000,-1316.78280428,0.00012,2]
[421544932,1777847617000,-6117.31690403,0.00012,2]
[421544931,1777847617000,-3713.08295613,0.00012,2]
[421544930,1777847617000,-316.01729912,0.00012,2]
[421544929,1777847617000,-811.86044318,0.00012,2]
[421544934,1777847617000,-2289.38086849,0.000134,2]
[421544927,1777847617000,-1256.26365027,0.00012,2]
[421544928,1777847617000,-522.02000001,0.00012,2]
[421544923,1777847617000,-3744.34733713,0.00012,2]
[421544924,1777847617000,-400.0,0.00012,2]
[421544925,1777847617000,-400.0,0.00012,2]
[421544922,1777847617000,-445.0385155,0.00012,2]
[421544921,1777847617000,-630.51769079,0.00012,2]
[421544919,1777847617000,-15993.47518468,0.00012,2]
[421544920,1777847617000,-16435.40077379,0.00012,2]
[421544918,1777847617000,-1963.84190529,0.00012,2]
[421544926,1777847617000,-67502.450181,0.00012,2]
[421544933,1777847617000,-4441.56805442,0.00012,2]
[421544939,1777847617000,-1200.0,0.00013701,2]
[421544937,1777847617000,-184.278472,0.00013699,2]
[421544952,1777847617000,102714.71695732,0.000107,2]
[421544951,1777847617000,-1273.19574012,0.000133,2]
[421544949,1777847617000,-38515.21896876,0.0001379,2]
[421544948,1777847617000,-1397.6292676,0.0001379,2]
[421544947,1777847617000,-458.66526517,0.0001379,2]
[421544950,1777847617000,-118867.47836621,0.0001379,2]
[421544946,1777847617000,-1000.0,0.0001379,2]
[421544935,1777847617000,-182.33,0.00013695,2]
[421544944,1777847617000,-270.0,0.00013746,2]
[421544936,1777847617000,-165.02,0.00013699,2]
[421544940,1777847617000,-300.0,0.00013701,2]
[421544942,1777847617000,-2500.0,0.00013702,2]
[421544945,1777847617000,-7600.69868818,0.0001379,2]
[421544941,1777847617000,-2500.0,0.00013702,2]
[421544943,1777847617000,-572.01,0.00013716,2]
[421544938,1777847617000,-500.0,0.00013699,2]
[421544953,1777847618000,-152.0,0.00012427,7]
[421544956,1777847619000,-1489.85188209,0.000133,2]
[421544954,1777847619000,-174.69,0.00012938,2]
[421544955,1777847619000,-250.0,0.000132,2]
[421544957,1777847620000,-1087.39418874,0.000133,2]
[421544958,1777847626000,-250.0,0.0001177,2]
[421544960,1777847628000,174.8929144,0.00011999,2]
[421544959,1777847628000,500.0,0.00011999,2]
[421544962,1777847629000,500.0,0.00011999,2]
[421544961,1777847629000,633.07642053,0.00011999,2]
[421544963,1777847629000,246.1254201,0.00011999,2]
[421544965,1777847671000,10000.01,0.00012208,2]
[421544971,1777847671000,1722.2362502,0.00012208,2]
[421544970,1777847671000,10000.01,0.00012208,2]
[421544968,1777847671000,10000.01,0.00012208,2]
[421544969,1777847671000,10000.01,0.00012208,2]
[421544967,1777847671000,10000.01,0.00012208,2]
[421544966,1777847671000,10000.01,0.00012208,2]
[421544964,1777847671000,10000.01,0.00012208,2]
[421544999,1777848252000,151.58,6.404e-05,2]
[421545001,1777848252000,151.58,7.205e-05,2]
[421545000,1777848252000,151.58,6.804e-05,2]
[421545004,1777848253000,151.58,8.406e-05,2]
[421545003,1777848253000,151.58,8.005e-05,2]
[421545002,1777848253000,151.58,7.605e-05,2]
[421545009,1777848254000,151.58,0.00010407,2]
[421545008,1777848254000,151.58,0.00010007,2]
[421545007,1777848254000,151.58,9.606e-05,2]
[421545006,1777848254000,151.58,9.206e-05,2]
[421545005,1777848254000,151.58,8.806e-05,2]
[421545012,1777848255000,151.58,0.00011608,2]
[421545011,1777848255000,151.58,0.00011207,2]
[421545010,1777848255000,151.58,0.00010807,2]
[421545163,1777848681000,-151.0,0.00012208,2]
[421545164,1777848681000,-151.0,0.00012208,2]
[421545179,1777848681000,-1081.61,0.00012851,2]
[421545170,1777848681000,-152.0,0.00012302,7]
[421545167,1777848681000,-151.0,0.00012208,2]
[421545165,1777848681000,-151.0,0.00012208,2]
[421545166,1777848681000,-151.0,0.00012208,2]
[421545157,1777848681000,-332.47906603,0.00012108,2]
[421545162,1777848681000,-151.0,0.00012208,2]
[421545159,1777848681000,-1200.0,0.00012207,2]
[421545161,1777848681000,-7095.3649661,0.00012208,2]
[421545168,1777848681000,-151.0,0.00012208,2]
[421545158,1777848681000,-150.0,0.00012207,2]
[421545156,1777848681000,-151.58,0.00012008,2]
[421545160,1777848681000,-300.0,0.00012207,2]